bitfinex/quotes_BTCUSD_20250108
["timestamp","ask_amount","ask_price","bid_price","bid_amount"]
[1736338362560,0.34286614,95324.0,95323.0,0.00033581]
[1736338362828,0.11556614,95324.0,95323.0,0.00033581]
[1736338363431,0.001,95324.0,95323.0,0.00033581]
[1736338364001,0.209808,95325.0,95323.0,0.00033581]
[1736338364211,0.31410776,95325.0,95323.0,0.00033581]
[1736338364415,0.001,95324.0,95323.0,0.00033581]
[1736338365999,0.002,95324.0,95323.0,0.00033581]
[1736338367236,0.10629976,95324.0,95323.0,0.00033581]
[1736338367437,0.10529976,95324.0,95323.0,0.00033581]
[1736338367861,0.10629976,95324.0,95323.0,0.00033581]
[1736338368299,0.10529976,95324.0,95323.0,0.00033581]
[1736338368498,0.40523768,95324.0,95323.0,0.00033581]
[1736338368696,0.37919976,95324.0,95323.0,0.00033581]
[1736338369165,0.10629976,95324.0,95323.0,0.00033581]
[1736338372457,0.002,95324.0,95323.0,0.00033581]
[1736338373575,0.001,95324.0,95323.0,0.00033581]
[1736338373952,0.002,95324.0,95323.0,0.00033581]
[1736338374987,0.001,95324.0,95323.0,0.00033581]
[1736338375413,0.002,95324.0,95323.0,0.00033581]
[1736338375581,0.002,95324.0,95323.0,0.00792976]
[1736338376459,0.00187375,95324.0,95323.0,0.00792976]
[1736338376834,0.00087375,95324.0,95323.0,0.00792976]
[1736338377300,0.00187375,95324.0,95323.0,0.00792976]
[1736338377428,0.00187375,95324.0,95323.0,0.00033581]
[1736338377631,0.00087375,95324.0,95323.0,0.00033581]
[1736338378016,0.00087375,95324.0,95323.0,0.00133581]
[1736338378235,0.00087375,95324.0,95296.0,0.21862121]
[1736338378236,0.11,95297.0,95296.0,0.21862121]
[1736338378455,0.11,95297.0,95296.0,0.21874487]
[1736338378456,0.55072212,95297.0,95296.0,0.21874487]
[1736338378649,0.26,95277.0,95276.0,0.0001704]
[1736338378856,0.403514,95277.0,95276.0,0.00030978]
[1736338379133,0.64251669,95277.0,95276.0,0.01352207]
[1736338379324,0.70031669,95277.0,95276.0,0.00030978]
[1736338379488,0.79133936,95277.0,95276.0,0.00030978]
[1736338380041,0.572627,95271.0,95270.0,9.8e-07]
[1736338380251,0.67692676,95271.0,95270.0,6.2e-07]
[1736338380389,0.76872969,95271.0,95270.0,6.2e-07]
[1736338380593,0.762641,95271.0,95270.0,6.2e-07]
[1736338380798,0.86694076,95271.0,95270.0,6.2e-07]
[1736338381006,0.88300225,95271.0,95270.0,6.2e-07]
[1736338381202,0.94080225,95271.0,95270.0,6.2e-07]
[1736338381412,0.72342676,95271.0,95270.0,6.2e-07]
[1736338381610,0.78122676,95271.0,95270.0,6.2e-07]
[1736338381809,0.46722676,95271.0,95270.0,6.2e-07]
[1736338382019,0.31722676,95271.0,95270.0,6.2e-07]
[1736338385111,0.31422676,95271.0,95270.0,6.2e-07]
[1736338385463,0.31622676,95271.0,95270.0,6.2e-07]
[1736338386959,0.31422676,95271.0,95270.0,6.2e-07]
[1736338387358,0.31622676,95271.0,95270.0,6.2e-07]
[1736338387771,0.210022,95228.0,95203.0,0.09]
[1736338387975,0.31432176,95228.0,95203.0,0.09]
[1736338388384,0.31432176,95228.0,95200.0,0.0001706]
[1736338388385,0.31432176,95228.0,95207.0,0.09]
[1736338389013,0.31432176,95228.0,95227.0,0.00024794]
[1736338391313,0.31632176,95228.0,95227.0,0.00024794]
[1736338391914,0.31432176,95228.0,95227.0,0.00024794]
[1736338392118,0.31932176,95228.0,95227.0,0.00024794]
[1736338392720,0.31432176,95228.0,95227.0,0.00024794]
[1736338393417,0.210018,95230.0,95227.0,0.00024794]
[1736338393787,0.21001,95234.0,95227.0,0.00024794]
[1736338393788,0.0584,95259.0,95227.0,0.00024794]
[1736338393938,0.0584,95259.0,95231.0,0.09]
[1736338393939,0.210009,95234.0,95231.0,0.09]
[1736338394104,0.210005,95236.0,95231.0,0.09]
[1736338394328,0.10429976,95235.0,95232.0,0.0113234]
[1736338394533,0.210019,95230.0,95227.0,0.00024794]
[1736338394766,0.210019,95230.0,95228.0,0.01133571]
[1736338395827,0.209997,95240.0,95231.0,0.09]
[1736338396322,0.209997,95240.0,95232.0,0.0113234]
[1736338396867,0.209997,95240.0,95234.0,0.09]
[1736338397270,0.209997,95240.0,95235.0,0.01131417]
[1736338397885,0.209976,95249.0,95239.0,0.09]
[1736338398110,0.002,95240.0,95239.0,0.28072954]
[1736338398317,0.002,95240.0,95239.0,0.09]
[1736338398514,0.209976,95249.0,95239.0,0.09]
[1736338398987,0.001,95240.0,95239.0,0.09]
[1736338399391,0.209976,95249.0,95239.0,0.09]
[1736338399770,0.210976,95249.0,95239.0,0.09]
[1736338402925,0.10429976,95248.0,95231.0,0.05784]
[1736338403246,0.210016,95231.0,95227.0,0.00024794]
[1736338403463,0.420033,95231.0,95227.0,0.00024794]
[1736338405810,0.420033,95231.0,95227.0,0.00224794]
[1736338407796,0.420033,95231.0,95227.0,0.00024794]
[1736338408115,0.421033,95231.0,95227.0,0.00024794]
[1736338408525,0.420033,95231.0,95227.0,0.00024794]
[1736338408993,0.421033,95231.0,95227.0,0.00024794]
[1736338409383,0.420033,95231.0,95227.0,0.00024794]
[1736338409782,0.421033,95231.0,95227.0,0.00024794]
[1736338411505,0.420033,95231.0,95227.0,0.00024794]
[1736338411903,0.421033,95231.0,95227.0,0.00024794]
[1736338412534,0.420033,95231.0,95227.0,0.00024794]
[1736338412741,0.421033,95231.0,95227.0,0.00024794]
[1736338414009,0.420033,95231.0,95227.0,0.00024794]
[1736338414574,0.421033,95231.0,95227.0,0.00024794]
[1736338415390,0.21002,95229.0,95227.0,0.00024794]
[1736338415564,0.10429976,95228.0,95227.0,0.00024794]
[1736338417881,0.21102,95229.0,95227.0,0.00024794]
[1736338418269,0.21002,95229.0,95227.0,0.00024794]
[1736338418473,0.001,95228.0,95227.0,0.00024794]
[1736338419075,0.21002,95229.0,95227.0,0.00024794]
[1736338419503,0.21202,95229.0,95227.0,0.00024794]
[1736338420635,0.21002,95229.0,95227.0,0.00024794]
[1736338421038,0.10429976,95228.0,95227.0,0.00024794]
[1736338421490,0.21002,95229.0,95227.0,0.00024794]
[1736338422033,0.21202,95229.0,95227.0,0.00024794]
[1736338422513,0.21002,95229.0,95227.0,0.00024794]
[1736338422683,0.21302,95229.0,95227.0,0.00024794]
[1736338424088,0.21002,95229.0,95227.0,0.00024794]
[1736338424296,0.21202,95229.0,95227.0,0.00024794]
[1736338425028,0.21002,95229.0,95227.0,0.00024794]
[1736338425820,0.21302,95229.0,95227.0,0.00024794]
[1736338427042,0.21002,95229.0,95227.0,0.00024794]
[1736338427454,0.21202,95229.0,95227.0,0.00024794]
[1736338427660,0.10429976,95228.0,95227.0,0.00024794]
[1736338428104,0.10429976,95228.0,95200.0,0.0001706]
[1736338428105,0.01,95224.0,95223.0,0.00799494]
[1736338428275,0.38729976,95224.0,95223.0,8.8e-07]
[1736338429693,0.41911623,95224.0,95223.0,8.8e-07]
[1736338430392,0.49951623,95224.0,95223.0,8.8e-07]
[1736338430599,0.60381599,95224.0,95223.0,8.8e-07]
[1736338431028,0.46769976,95224.0,95223.0,8.8e-07]
[1736338431407,0.47269976,95224.0,95223.0,8.8e-07]
[1736338432312,0.48298902,95224.0,95223.0,8.8e-07]
[1736338432652,0.47269976,95224.0,95223.0,8.8e-07]
[1736338434286,0.53053976,95224.0,95223.0,8.8e-07]
[1736338434620,0.63483952,95224.0,95223.0,8.8e-07]
[1736338435965,0.53053976,95224.0,95223.0,8.8e-07]
[1736338437395,0.52553976,95224.0,95223.0,8.8e-07]
[1736338437597,0.46769976,95224.0,95223.0,8.8e-07]
[1736338437814,0.46769976,95224.0,95223.0,0.00100088]
[1736338437815,0.50953976,95224.0,95223.0,0.00100088]
[1736338438671,0.53253976,95224.0,95223.0,0.00100088]
[1736338439899,0.52553976,95224.0,95223.0,8.8e-07]
[1736338440309,0.53153976,95224.0,95223.0,0.00100088]
[1736338440518,0.63583952,95224.0,95223.0,0.00100088]
[1736338440755,0.62983952,95224.0,95223.0,8.8e-07]
[1736338441151,0.63583952,95224.0,95223.0,8.8e-07]
[1736338444955,0.53153976,95224.0,95223.0,8.8e-07]
[1736338445756,0.35113976,95224.0,95223.0,8.8e-07]
[1736338445959,0.45113976,95224.0,95223.0,8.8e-07]
[1736338446119,0.29329976,95224.0,95223.0,8.8e-07]
[1736338446318,0.39329976,95224.0,95223.0,8.8e-07]
[1736338446519,0.28329976,95224.0,95223.0,8.8e-07]
[1736338446926,0.26029976,95224.0,95223.0,8.8e-07]
[1736338447370,0.11029976,95224.0,95223.0,8.8e-07]
[1736338447569,0.11029976,95224.0,95205.0,0.0796]
[1736338447570,0.10429976,95224.0,95205.0,0.0796]
[1736338447746,0.10429976,95223.0,95205.0,0.07964931]
[1736338448136,0.210055,95214.0,95206.0,0.10224996]
[1736338448493,0.10429976,95223.0,95208.0,0.09]
[1736338448697,0.10429976,95223.0,95206.0,0.01224996]
[1736338448698,0.210044,95218.0,95213.0,0.09]
[1736338448903,0.10429976,95223.0,95209.0,0.14744072]
[1736338449108,0.210053,95215.0,95214.0,0.01222533]
[1736338449285,0.210053,95215.0,95209.0,0.1352]
[1736338449487,0.210053,95215.0,95214.0,0.01222533]
[1736338449694,0.210053,95215.0,95209.0,0.1352]
[1736338449894,0.210046,95217.0,95209.0,0.1352]
[1736338450091,0.210035,95222.0,95210.0,0.01223764]
[1736338450415,0.210035,95222.0,95209.0,0.1352]
[1736338450416,0.210039,95220.0,95211.0,0.01223457]
[1736338450615,0.002,95215.0,95209.0,0.1352]
[1736338450938,0.002,95215.0,95210.0,0.01223764]
[1736338451145,0.31433876,95220.0,95210.0,0.01223764]
[1736338453036,0.213035,95222.0,95213.0,0.09]
[1736338453037,0.003,95222.0,95213.0,0.09]
[1736338453441,0.210037,95221.0,95214.0,0.01222533]
[1736338454024,0.210039,95220.0,95214.0,0.01222533]
[1736338454240,0.001,95215.0,95213.0,0.09]
[1736338454857,0.210039,95220.0,95213.0,0.09]
[1736338457477,0.211039,95220.0,95213.0,0.09]
[1736338459072,0.210039,95220.0,95213.0,0.09]
[1736338460840,0.210049,95216.0,95213.0,0.09]
[1736338461087,0.211039,95220.0,95213.0,0.09]
[1736338461607,0.210039,95220.0,95213.0,0.09]
[1736338461793,0.420079,95220.0,95213.0,0.09]
[1736338462164,0.211039,95220.0,95213.0,0.09]
[1736338463062,0.210039,95220.0,95213.0,0.09]
[1736338464861,0.211039,95220.0,95213.0,0.09]
[1736338465272,0.210039,95220.0,95213.0,0.09]
[1736338465711,0.21005,95216.0,95213.0,0.09]
[1736338465929,0.001,95220.0,95213.0,0.09]
[1736338466147,0.210044,95218.0,95213.0,0.09]
[1736338468570,0.210042,95219.0,95213.0,0.09]
[1736338468778,0.210024,95227.0,95217.0,0.09]
[1736338468951,0.001,95228.0,95218.0,0.09]
[1736338469161,0.210033,95223.0,95218.0,0.10227092]
[1736338470811,0.210042,95219.0,95218.0,0.10227092]
[1736338471109,0.210042,95219.0,95218.0,0.09]
[1736338471497,0.210042,95219.0,95218.0,0.10227092]
[1736338472096,0.211042,95219.0,95218.0,0.10227092]
[1736338472567,0.211042,95219.0,95218.0,0.09]
[1736338472997,0.211042,95219.0,95218.0,0.10228391]
[1736338475680,0.210042,95219.0,95218.0,0.10228391]
[1736338476281,0.210037,95222.0,95218.0,0.10228391]
[1736338476637,0.210024,95227.0,95218.0,0.10228391]
[1736338476638,0.210024,95227.0,95222.0,0.09]
[1736338476829,0.210024,95227.0,95223.0,0.0807]
[1736338477013,0.210024,95227.0,95223.0,0.09296852]
[1736338478800,0.212024,95227.0,95223.0,0.09296852]
[1736338479000,0.212025,95227.0,95223.0,0.09296852]
[1736338479292,0.002,95227.0,95223.0,0.09296852]
[1736338479493,0.002,95227.0,95226.0,0.09]
[1736338480206,0.002,95227.0,95226.0,0.10225928]
[1736338480622,0.001,95228.0,95226.0,0.10225928]
[1736338480966,0.002,95227.0,95226.0,0.10225928]
[1736338481373,0.001,95228.0,95226.0,0.10225928]
[1736338481704,0.001,95228.0,95227.0,0.09]
[1736338481925,0.003,95228.0,95227.0,0.09]
[1736338482139,0.003,95228.0,95227.0,0.10225621]
[1736338482340,0.001,95228.0,95227.0,0.10225621]
[1736338484265,0.001,95228.0,95227.0,0.17430628]
[1736338484496,0.001,95228.0,95227.0,0.42860604]
[1736338484670,0.001,95228.0,95227.0,2.01998423]
[1736338484905,0.001,95228.0,95227.0,2.0527526]
[1736338485433,0.001,95228.0,95227.0,2.0537526]
[1736338485645,0.001,95228.0,95227.0,2.02098423]
[1736338486006,0.001,95228.0,95227.0,2.01998423]
[1736338487354,0.001,95228.0,95227.0,2.02198423]
[1736338487956,0.001,95228.0,95227.0,2.07778423]
[1736338488193,0.001,95228.0,95227.0,2.08178423]
[1736338489380,0.001,95228.0,95227.0,2.07778423]
[1736338489664,0.001,95228.0,95227.0,2.17778423]
[1736338490452,0.001,95228.0,95227.0,2.27778423]
[1736338490787,0.001,95228.0,95227.0,2.28178423]
[1736338491580,0.001,95228.0,95227.0,2.27778423]
[1736338491986,0.001,95228.0,95227.0,2.28178423]
[1736338502654,0.0001706,95263.0,95262.0,0.299947]
[1736338502855,0.0001706,95263.0,95262.0,0.357747]
[1736338503055,0.0001706,95263.0,95262.0,0.37043261]
[1736338503908,0.0021706,95263.0,95262.0,0.37048192]
[1736338504676,0.0001706,95263.0,95262.0,0.37048192]
[1736338504881,0.0001706,95263.0,95262.0,0.10273492]
[1736338505080,0.18667036,95263.0,95262.0,0.01273492]
[1736338505334,0.3408156,95263.0,95262.0,4.931e-05]
[1736338506149,0.3428156,95263.0,95262.0,4.931e-05]
[1736338506709,0.3408156,95263.0,95262.0,4.931e-05]
[1736338507075,0.3418156,95263.0,95262.0,4.931e-05]
[1736338507280,0.1318706,95263.0,95262.0,4.931e-05]
[1736338507484,0.0011706,95263.0,95262.0,0.09004931]
[1736338507687,0.0011706,95263.0,95262.0,0.103132]
[1736338509471,0.0011706,95263.0,95262.0,0.38148138]
[1736338509685,0.0011706,95263.0,95262.0,0.38043176]
[1736338509915,0.0001706,95263.0,95262.0,0.38043176]
[1736338510533,0.0001706,95263.0,95262.0,0.310892]
[1736338510732,0.0001706,95263.0,95262.0,0.103132]
[1736338510946,0.0001706,95263.0,95262.0,0.014132]
[1736338511158,0.2554156,95263.0,95262.0,0.104132]
[1736338511372,0.2554156,95263.0,95262.0,0.014132]
[1736338511584,0.2554156,95263.0,95262.0,0.00104931]
[1736338511800,0.35971536,95263.0,95262.0,0.00104931]
[1736338513175,0.2554156,95263.0,95262.0,0.00104931]
[1736338513580,0.0454706,95263.0,95262.0,4.931e-05]
[1736338513800,0.0454706,95263.0,95262.0,0.013132]
[1736338514005,0.0454706,95263.0,95262.0,4.931e-05]
[1736338514220,0.0454706,95263.0,95262.0,0.09004931]
[1736338514429,0.0001706,95263.0,95262.0,0.09004931]
[1736338514645,0.0001706,95263.0,95262.0,0.013132]
[1736338514869,0.0021706,95263.0,95262.0,4.931e-05]
[1736338515078,0.0021706,95263.0,95262.0,0.013132]
[1736338515298,0.0021706,95263.0,95262.0,4.931e-05]
[1736338515506,0.0021706,95263.0,95262.0,0.09004931]
[1736338515924,0.0021706,95263.0,95262.0,4.931e-05]
[1736338516559,0.0001706,95263.0,95262.0,4.931e-05]
[1736338516964,0.0021706,95263.0,95262.0,4.931e-05]
[1736338517403,0.0001706,95263.0,95262.0,4.931e-05]
[1736338517858,0.0011706,95263.0,95262.0,4.931e-05]
[1736338518780,0.10547036,95263.0,95262.0,4.931e-05]
[1736338518994,0.23267036,95263.0,95262.0,4.931e-05]
[1736338519423,0.29896959,95263.0,95262.0,4.931e-05]
[1736338519621,0.23167036,95263.0,95262.0,4.931e-05]
[1736338520064,0.23467036,95263.0,95262.0,4.931e-05]
[1736338520446,0.23167036,95263.0,95262.0,4.931e-05]
[1736338520681,0.25246628,95263.0,95262.0,4.931e-05]
[1736338520884,0.25646628,95263.0,95262.0,4.931e-05]
[1736338521514,0.25246628,95263.0,95262.0,4.931e-05]
[1736338522732,0.25546628,95263.0,95262.0,4.931e-05]
[1736338523386,0.25246628,95263.0,95262.0,4.931e-05]
[1736338524666,0.25646628,95263.0,95262.0,4.931e-05]
[1736338525897,0.25246628,95263.0,95262.0,4.931e-05]
[1736338526100,0.25646628,95263.0,95262.0,4.931e-05]
[1736338528080,0.26646628,95263.0,95262.0,4.931e-05]
[1736338528729,0.26646628,95263.0,95262.0,3.1e-07]
[1736338528730,0.54133658,95263.0,95262.0,3.1e-07]
[1736338528950,0.54133658,95263.0,95214.0,0.416053]
[1736338528951,0.21002,95229.0,95221.0,0.09]
[1736338529157,0.21002,95229.0,95228.0,0.10004924]
[1736338529364,0.21002,95229.0,95228.0,0.11323652]
[1736338529787,0.31431976,95229.0,95228.0,0.11323652]
[1736338530230,0.31431976,95229.0,95228.0,0.10104924]
[1736338530643,0.31431976,95229.0,95228.0,0.10004924]
[1736338530821,0.31431976,95229.0,95228.0,0.10104924]
[1736338536599,0.32485495,95229.0,95228.0,0.10104924]
[1736338538543,0.31431976,95229.0,95228.0,0.10104924]
[1736338539134,0.210016,95231.0,95228.0,0.10104924]
[1736338539340,0.0792,95240.0,95236.0,0.09]
[1736338539341,0.209996,95240.0,95236.0,0.09]
[1736338539776,0.209996,95240.0,95237.0,0.01351709]
[1736338540760,0.419993,95240.0,95237.0,0.01351709]
[1736338541231,0.01072899,95243.0,95236.0,0.09]
[1736338541456,0.01072899,95243.0,95233.0,0.09]
[1736338541457,0.210008,95235.0,95233.0,0.09]
[1736338541676,0.210008,95235.0,95234.0,0.01350239]
[1736338541883,0.10429976,95243.0,95234.0,0.10350239]
[1736338542104,0.210004,95237.0,95234.0,0.10350239]
[1736338542941,0.210004,95237.0,95236.0,0.09]
[1736338545637,0.210016,95231.0,95228.0,0.19004924]
[1736338545843,0.210016,95231.0,95230.0,0.09]
[1736338546045,0.210012,95233.0,95230.0,0.09]
[1736338546248,0.210012,95233.0,95230.0,0.1035147]
[1736338550324,0.420024,95233.0,95232.0,0.09]
[1736338550677,0.210012,95233.0,95232.0,0.10350854]
[1736338552186,0.211012,95233.0,95232.0,0.10350854]
[1736338552697,0.001,95233.0,95232.0,0.10350854]
[1736338553553,0.00087366,95233.0,95232.0,0.10350854]
[1736338561033,0.21088466,95233.0,95232.0,0.10350854]
[1736338561236,0.21088466,95233.0,95232.0,0.01350854]
[1736338561442,0.36138442,95233.0,95232.0,0.01350854]
[1736338561644,0.21002,95229.0,95228.0,0.10004924]
[1736338562199,0.31431976,95229.0,95228.0,0.10004924]
[1736338563673,0.31348495,95229.0,95228.0,0.10004924]
[1736338564029,0.31448495,95229.0,95228.0,0.10004924]
[1736338566422,0.31548495,95229.0,95228.0,0.10004924]
[1736338567426,0.002,95229.0,95228.0,0.19004924]
[1736338567812,0.002,95229.0,95228.0,0.20357009]
[1736338568987,0.21202,95229.0,95228.0,0.20357009]
[1736338569939,0.002,95229.0,95228.0,0.20357009]
[1736338570633,0.002,95229.0,95228.0,0.19004924]
[1736338571040,0.001,95229.0,95228.0,0.20357009]
[1736338574430,0.002,95229.0,95228.0,0.20357009]
[1736338575069,0.001,95229.0,95228.0,0.20357009]
[1736338579808,0.001,95229.0,95228.0,0.19004924]
[1736338580387,0.001,95229.0,95228.0,0.20362794]
[1736338581018,0.001,95229.0,95228.0,0.11362794]
[1736338581229,0.10529976,95229.0,95228.0,0.11362794]
[1736338583766,0.10629976,95229.0,95228.0,0.11362794]
[1736338584380,0.10629976,95229.0,95228.0,0.10004924]
[1736338586240,0.12684957,95229.0,95228.0,0.10004924]
[1736338587486,0.20441429,95229.0,95228.0,0.10004924]
[1736338587852,0.46334957,95229.0,95228.0,0.10004924]
[1736338589463,0.46234957,95229.0,95228.0,0.10004924]
[1736338589706,0.46534957,95229.0,95228.0,0.10004924]
[1736338590356,0.46234957,95229.0,95228.0,0.10004924]
[1736338590556,0.46734957,95229.0,95228.0,0.10004924]
[1736338591231,0.46234957,95229.0,95228.0,0.10004924]
[1736338592234,0.45234957,95229.0,95228.0,0.10004924]
[1736338593222,0.45734957,95229.0,95228.0,0.10004924]
[1736338594698,0.46734957,95229.0,95228.0,0.10004924]
[1736338596280,0.45734957,95229.0,95228.0,0.10004924]
[1736338597883,0.35734957,95229.0,95228.0,0.10004924]
[1736338599978,0.35234957,95229.0,95228.0,0.10004924]
[1736338600400,0.35734957,95229.0,95228.0,0.10004924]
[1736338600817,0.35234957,95229.0,95228.0,0.10004924]
[1736338601233,0.35634957,95229.0,95228.0,0.10004924]
[1736338603637,0.12984957,95229.0,95228.0,0.10004924]
[1736338604250,0.12584957,95229.0,95228.0,0.10004924]
[1736338604465,0.12984957,95229.0,95228.0,0.10004924]
[1736338605698,0.12584957,95229.0,95228.0,0.10004924]
[1736338606125,0.12884957,95229.0,95228.0,0.10004924]
[1736338606542,0.12584957,95229.0,95228.0,0.10004924]
[1736338606887,0.12884957,95229.0,95228.0,0.10004924]
[1736338607335,0.12584957,95229.0,95228.0,0.10004924]
[1736338607734,0.12784957,95229.0,95228.0,0.10004924]
[1736338614023,0.12784957,95229.0,95228.0,0.10004924]
[1736338619088,0.34597429,95229.0,95228.0,0.10004924]
[1736338619261,0.34597429,95229.0,95200.0,0.0001706]
[1736338619262,0.210081,95201.0,95200.0,0.0001706]
[1736338619467,0.31438076,95201.0,95200.0,0.0002199]
[1736338619662,0.31438076,95201.0,95200.0,0.0138848]
[1736338619862,0.31438076,95201.0,95200.0,0.0002199]
[1736338621385,0.31538076,95201.0,95200.0,0.0002199]
[1736338621839,0.31438076,95201.0,95200.0,0.0002199]
[1736338623919,0.46463354,95201.0,95200.0,0.0002199]
[1736338624127,0.62463354,95201.0,95200.0,0.0002199]
[1736338624529,0.210106,95190.0,95189.0,8.53e-05]
[1736338624740,0.31440576,95190.0,95189.0,0.0001346]
[1736338624941,0.46440576,95190.0,95189.0,0.0001346]
[1736338626412,0.70663274,95190.0,95189.0,0.0001346]
[1736338626760,0.80663274,95190.0,95189.0,0.0001346]
[1736338627075,0.81063274,95190.0,95189.0,0.0001346]
[1736338627640,0.80663274,95190.0,95189.0,0.0001346]
[1736338627843,0.470117,95185.0,95184.0,4e-07]
[1736338628037,0.65211676,95185.0,95184.0,6.6e-07]
[1736338628311,0.65211676,95185.0,95179.0,9.6e-07]
[1736338628312,0.370128,95180.0,95179.0,9.6e-07]
[1736338628530,0.72492776,95180.0,95179.0,0.00014882]
[1736338628740,0.72492776,95180.0,95179.0,8.2e-07]
[1736338628961,0.82922752,95180.0,95179.0,8.2e-07]
[1736338629181,0.72492776,95180.0,95179.0,8.2e-07]
[1736338629398,0.46442776,95180.0,95179.0,8.2e-07]
[1736338629602,0.31442776,95180.0,95179.0,8.2e-07]
[1736338629834,0.33577287,95180.0,95179.0,8.2e-07]
[1736338630473,0.31442776,95180.0,95179.0,8.2e-07]
[1736338630675,0.214128,95180.0,95179.0,0.07930082]
[1736338631096,0.214128,95180.0,95179.0,0.0907857]
[1736338631303,0.210128,95180.0,95179.0,0.0907857]
[1736338631519,0.211128,95180.0,95179.0,0.0907857]
[1736338633487,0.210128,95180.0,95179.0,0.0907857]
[1736338633910,0.211128,95180.0,95179.0,0.0907857]
[1736338634327,0.210128,95180.0,95179.0,0.0907857]
[1736338634782,0.210128,95180.0,95179.0,0.0917857]
[1736338635157,0.210128,95180.0,95179.0,0.0907857]
[1736338635526,0.210128,95180.0,95179.0,0.0917857]
[1736338637687,0.210113,95187.0,95186.0,0.09]
[1736338637889,0.220044,95218.0,95179.0,0.0917857]
[1736338637890,0.01075295,95198.0,95191.0,0.09]
[1736338638086,0.01075295,95198.0,95193.0,0.09]
[1736338638087,0.21009,95197.0,95193.0,0.09]
[1736338638513,0.01075295,95198.0,95197.0,0.1377]
[1736338638715,0.210065,95209.0,95197.0,0.34779]
[1736338638914,0.210065,95209.0,95197.0,0.14912944]
[1736338639458,0.210057,95213.0,95197.0,0.14912944]
[1736338639459,0.210057,95213.0,95210.0,0.09]
[1736338639888,0.01049158,95215.0,95214.0,0.09]
[1736338640231,0.01049158,95215.0,95214.0,0.1731]
[1736338640359,0.01049158,95215.0,95214.0,0.1855273]
[1736338640572,0.0001708,95219.0,95215.0,0.21005]
[1736338640778,0.0001708,95219.0,95218.0,0.09]
[1736338640994,0.0001708,95219.0,95218.0,0.09105012]
[1736338641197,0.0001708,95219.0,95218.0,0.10241491]
[1736338642357,0.0001708,95219.0,95218.0,0.10336479]
[1736338642568,0.0001708,95219.0,95218.0,0.10441488]
[1736338643521,0.0001708,95219.0,95218.0,0.10241488]
[1736338643934,0.0001708,95219.0,95218.0,0.10441488]
[1736338644314,0.0001708,95219.0,95218.0,0.10241488]
[1736338645142,0.0001708,95219.0,95218.0,0.10541488]
[1736338645542,0.0001708,95219.0,95218.0,0.10436479]
[1736338646792,0.0001708,95219.0,95218.0,0.31140879]
[1736338646974,0.0001708,95219.0,95218.0,0.10136479]
[1736338647169,0.0001708,95219.0,95218.0,0.10336479]
[1736338647599,0.0001708,95219.0,95218.0,0.10136479]
[1736338648127,0.0001708,95219.0,95218.0,0.10336479]
[1736338648543,0.0001708,95219.0,95218.0,0.01136479]
[1736338648725,0.10447056,95219.0,95218.0,0.01336479]
[1736338648932,0.10447056,95219.0,95218.0,0.002]
[1736338650151,0.420088,95218.0,95214.0,9.198e-05]
[1736338650328,0.210048,95216.0,95214.0,9.198e-05]
[1736338650682,0.31434776,95216.0,95214.0,9.198e-05]
[1736338652170,0.25429976,95215.0,95214.0,9.198e-05]
[1736338652367,0.33469976,95215.0,95214.0,9.198e-05]
[1736338652568,0.36769976,95215.0,95214.0,9.198e-05]
[1736338653267,0.36769976,95215.0,95214.0,9.8e-07]
[1736338653470,0.210128,95180.0,95174.0,0.0001706]
[1736338653690,0.210128,95180.0,95174.0,0.00026305]
[1736338653691,0.31442776,95180.0,95174.0,0.00026305]
[1736338653940,0.15,95195.0,95176.0,0.09]
[1736338653941,0.210135,95177.0,95176.0,0.09]
[1736338654345,0.02144384,95191.0,95176.0,0.10149412]
[1736338654484,0.21013,95179.0,95176.0,0.10149412]
[1736338655536,0.21013,95179.0,95176.0,0.09]
[1736338656075,0.21013,95179.0,95177.0,0.01149104]
[1736338656485,0.210116,95186.0,95185.0,0.09]
[1736338656688,0.07663309,95216.0,95193.0,0.09]
[1736338656913,0.210082,95201.0,95200.0,0.09]
[1736338657105,0.210076,95204.0,95203.0,0.09]
[1736338657438,0.420152,95204.0,95203.0,0.10141096]
[1736338657633,0.420152,95204.0,95203.0,0.09]
[1736338658478,0.420152,95204.0,95203.0,0.09009245]
[1736338658704,0.421152,95204.0,95203.0,0.09009245]
[1736338658871,0.211076,95204.0,95203.0,0.09009245]
[1736338659278,0.211076,95204.0,95203.0,0.09964721]
[1736338659673,0.211076,95204.0,95203.0,0.09009245]
[1736338660081,0.210076,95204.0,95203.0,0.09009245]
[1736338660283,0.211076,95204.0,95203.0,0.09009245]
[1736338660922,0.210076,95204.0,95203.0,0.09009245]
[1736338664837,0.31437576,95204.0,95203.0,9.245e-05]
[1736338665790,0.210076,95204.0,95203.0,0.09009245]
[1736338667030,0.01023984,95214.0,95203.0,0.09009245]
[1736338667178,0.001,95229.0,95218.0,0.09]
[1736338667575,0.001,95229.0,95218.0,0.09950858]
[1736338668233,0.210028,95226.0,95218.0,0.09950858]
[1736338669691,0.210037,95222.0,95218.0,0.09950858]
[1736338670687,0.210028,95226.0,95218.0,0.09950858]
[1736338671301,0.210036,95222.0,95218.0,0.10150858]
[1736338671527,0.210028,95226.0,95218.0,0.10150858]
[1736338671728,0.001,95229.0,95218.0,0.10150858]
[1736338671926,0.210025,95227.0,95218.0,0.10150858]
[1736338673184,0.210035,95223.0,95218.0,0.10150858]
[1736338674131,0.210035,95222.0,95218.0,0.10150858]
[1736338675164,0.001,95229.0,95218.0,0.10150858]
[1736338675595,0.001,95229.0,95218.0,0.10255869]
[1736338676941,0.001,95229.0,95218.0,0.10150858]
[1736338677172,0.001,95229.0,95218.0,0.18265866]
[1736338677607,0.210026,95227.0,95218.0,0.18265866]
[1736338677808,0.001,95229.0,95218.0,0.18160858]
[1736338678024,0.001,95229.0,95218.0,0.18265865]
[1736338678482,0.001,95229.0,95218.0,0.18160858]
[1736338678743,0.001,95229.0,95218.0,0.18265865]
[1736338679176,0.210025,95227.0,95218.0,0.18160858]
[1736338679578,0.001,95229.0,95218.0,0.18160858]
[1736338680229,0.001,95229.0,95218.0,0.18265865]
[1736338680621,0.001,95229.0,95218.0,0.18065865]
[1736338680937,0.001,95229.0,95218.0,0.18265865]
[1736338681381,0.001,95229.0,95218.0,0.28695841]
[1736338681611,0.001,95229.0,95218.0,0.28390834]
[1736338681835,0.001,95229.0,95218.0,0.28690834]
[1736338682075,0.001,95229.0,95218.0,1.78690834]
[1736338682319,0.001,95229.0,95218.0,2.03200834]
[1736338682785,0.001,95229.0,95218.0,2.18576897]